bitfinex/quotes_ETHUSD_20250616
["timestamp","ask_amount","ask_price","bid_price","bid_amount"]
[1750099532238,3.7829354,2643.5,2643.0,4.60777404]
[1750099532541,3.78302463,2643.4,2643.0,4.60777404]
[1750099533104,7.65732874,2643.3,2642.8,3.78372497]
[1750099533303,7.65732874,2643.3,2643.0,3.78356831]
[1750099533544,11.44026459,2643.5,2643.0,4.60486831]
[1750099534842,3.78301092,2643.4,2643.0,4.60486831]
[1750099535141,3.78301092,2643.4,2643.0,0.8213]
[1750099535847,11.44053684,2643.3,2643.1,6.156]
[1750099536205,3.7832081,2643.3,2643.1,6.156]
[1750099536442,3.78307744,2643.4,2642.8,4.60230941]
[1750099536643,3.78332414,2643.2,2642.8,6.9745]
[1750099536833,3.78311758,2643.4,2642.8,6.9745]
[1750099537028,11.44057451,2643.3,2642.8,10.75831651]
[1750099537229,11.44083192,2643.1,2642.6,4.60794061]
[1750099537429,11.44083192,2643.1,2642.7,6.156]
[1750099537831,11.44083192,2643.1,2642.6,2.4129]
[1750099537832,3.78378502,2642.9,2642.6,2.4129]
[1750099538033,8.80144012,2642.9,2642.6,1.589]
[1750099538236,7.65732874,2642.7,2642.4,6.156]
[1750099538417,11.44136197,2642.7,2642.4,6.156]
[1750099538930,7.65732874,2642.7,2642.4,6.156]
[1750099539135,3.78394799,2642.8,2642.4,6.156]
[1750099539136,3.78394799,2642.8,2642.4,9.94043599]
[1750099539544,3.78394799,2642.8,2642.4,6.156]
[1750099539858,3.78410722,2642.7,2642.4,6.156]
[1750099540058,3.78410722,2642.7,2642.5,6.156]
[1750099540655,3.78394779,2642.8,2642.5,6.156]
[1750099541932,7.65732874,2642.7,2642.3,0.8239]
[1750099542246,7.65732874,2642.7,2642.1,1.609]
[1750099542247,11.44147532,2642.7,2642.4,6.156]
[1750099542656,11.44116005,2642.9,2642.4,9.94033668]
[1750099542888,3.78387602,2642.8,2642.4,9.94033668]
[1750099543070,3.78387602,2642.8,2642.4,6.156]
[1750099544273,11.44113264,2642.9,2642.4,6.156]
[1750099544455,3.78365179,2643.0,2642.5,4.59746138]
[1750099544661,13.7837437,2642.9,2642.5,4.59746138]
[1750099545979,3.78386762,2642.8,2642.5,0.8132]
[1750099546137,13.78379685,2642.9,2642.5,0.8132]
[1750099547084,10.0,2642.9,2642.5,4.59745991]
[1750099547565,3.78372671,2642.9,2642.5,4.59745991]
[1750099547769,10.0,2642.9,2642.5,4.59745991]
[1750099548168,10.0,2643.2,2642.7,0.8132]
[1750099548369,0.90571413,2643.6,2643.1,4.59654836]
[1750099548544,3.78278779,2643.6,2643.1,4.59654836]
[1750099549059,14.53759543,2643.7,2643.1,4.59654836]
[1750099549260,3.78286664,2643.5,2643.1,4.59654836]
[1750099549483,3.78286664,2643.5,2643.2,6.156]
[1750099549974,3.782795,2643.6,2643.2,6.156]
[1750099550290,6.38056692,2643.6,2643.2,6.156]
[1750099551086,3.78228939,2644.0,2643.3,0.85103232]
[1750099551271,3.78230947,2643.9,2643.4,3.78292795]
[1750099551473,10.0,2643.8,2643.3,4.59630539]
[1750099551674,4.53705395,2644.1,2643.5,3.78286314]
[1750099551852,13.78229166,2643.9,2643.6,6.156]
[1750099552295,13.78221324,2644.0,2643.6,6.156]
[1750099552768,3.78230292,2643.9,2643.6,6.156]
[1750099552971,13.78222923,2644.0,2643.6,6.156]
[1750099553173,3.78229375,2643.9,2643.6,6.156]
[1750099553950,13.78220689,2644.0,2643.6,6.156]
[1750099554148,10.0,2644.0,2643.7,0.7924]
[1750099554353,13.78215918,2644.0,2643.7,0.7924]
[1750099554679,3.7823013,2643.9,2643.7,0.7924]
[1750099555187,13.78222308,2644.0,2643.7,0.7924]
[1750099555393,11.43942723,2644.1,2643.7,0.7924]
[1750099556381,3.78215267,2644.0,2643.7,0.7924]
[1750099558189,11.43940324,2644.1,2643.7,0.7924]
[1750099558690,3.78215819,2644.0,2643.7,0.7924]
[1750099559406,0.7562,2644.3,2643.7,0.7924]
[1750099559694,0.55,2644.5,2643.9,3.78228075]
[1750099559695,3.78168588,2644.4,2643.9,3.78228075]
[1750099559906,3.78136909,2644.6,2644.1,4.5743221]
[1750099560056,1.65984964,2644.7,2644.2,3.7818591]
[1750099560057,10.0,2644.5,2644.2,3.7818591]
[1750099560256,10.0,2644.5,2644.3,3.78171462]
[1750099560499,4.55712551,2644.9,2644.2,3.8196666]
[1750099560697,4.55712551,2644.9,2644.4,3.78151051]
[1750099560897,4.55712551,2644.9,2644.4,9.93651051]
[1750099561193,10.0,2644.8,2644.4,9.93651051]
[1750099561398,4.55712551,2644.9,2644.4,9.93651051]
[1750099561569,10.02,2644.9,2644.4,6.155]
[1750099561789,13.80093901,2644.9,2644.4,9.93651161]
[1750099561992,0.02,2644.9,2644.5,0.7924]
[1750099562328,3.80090525,2644.9,2644.5,0.7924]
[1750099562605,13.80090525,2644.9,2644.5,0.7924]
[1750099563789,10.02,2644.9,2644.5,4.57372586]
[1750099563990,10.02,2644.9,2644.5,6.17781747]
[1750099564318,13.80086577,2644.9,2644.5,2.39649161]
[1750099564773,10.02,2644.9,2644.5,6.17792149]
[1750099564973,10.02,2644.9,2644.6,3.78125489]
[1750099565226,10.02,2644.9,2644.5,6.17782291]
[1750099565978,17.67732874,2644.9,2644.5,6.17792337]
[1750099566697,10.02,2644.9,2644.6,3.78126432]
[1750099567885,10.02,2644.9,2644.5,0.7924]
[1750099568080,13.80092461,2644.9,2644.5,0.7924]
[1750099569505,13.80092461,2644.9,2644.5,4.57382594]
[1750099570182,21.45825335,2644.9,2644.5,0.7924]
[1750099570379,7.65732874,2644.7,2644.5,0.7924]
[1750099570705,11.43847594,2644.7,2644.6,6.152]
[1750099572117,7.65732874,2644.7,2644.6,6.152]
[1750099572442,11.43849514,2644.7,2644.3,0.8164]
[1750099572575,7.65732874,2644.4,2644.0,5.37005079]
[1750099572780,7.65732874,2644.4,2644.1,9.93397453]
[1750099573015,3.78143883,2644.5,2644.1,3.78197453]
[1750099573183,3.78143883,2644.5,2644.2,6.152]
[1750099573579,3.79143883,2644.5,2644.2,6.152]
[1750099574525,3.78158555,2644.4,2644.2,6.152]
[1750099574741,9.25698519,2644.4,2643.9,0.8164]
[1750099574894,7.65732874,2644.1,2644.0,6.152]
[1750099575104,1.59965645,2644.4,2644.0,6.152]
[1750099575105,11.43911762,2644.3,2644.0,6.152]
[1750099576188,3.78188695,2644.2,2644.0,6.152]
[1750099576483,3.78200521,2644.1,2643.9,6.152]
[1750099577117,3.78186722,2644.2,2643.9,6.152]
[1750099577449,3.78201688,2644.1,2643.9,6.152]
[1750099578618,7.65732874,2644.3,2643.9,6.152]
[1750099578795,3.78204286,2644.1,2643.9,6.152]
[1750099579392,3.782154,2644.0,2643.8,6.153]
[1750099579596,3.782154,2644.0,2643.8,6.152]
[1750099580012,11.43939784,2644.1,2643.8,6.152]
[1750099580484,3.7820691,2644.1,2643.8,6.152]
[1750099581116,10.7743,2644.2,2643.8,6.152]
[1750099581315,13.78189265,2644.2,2643.8,9.93435055]
[1750099581514,13.78189265,2644.2,2643.8,6.152]
[1750099581850,0.01,2644.5,2643.9,2.42662298]
[1750099582030,0.01,2644.5,2644.1,3.7818664]
[1750099582323,0.01,2644.5,2644.2,9.9448321]
[1750099582525,0.01,2644.5,2644.2,6.163]
[1750099582895,0.01,2644.5,2644.2,9.94485026]
[1750099583429,3.79143789,2644.5,2644.1,3.78194081]
[1750099583603,0.01,2644.5,2644.3,6.163]
[1750099586027,3.7914454,2644.5,2644.3,6.163]
[1750099586228,12.24547656,2644.4,2643.9,6.17108141]
[1750099586431,7.65732874,2644.0,2643.9,1.587]
[1750099586733,7.65732874,2644.0,2643.9,6.162]
[1750099586893,7.65732874,2644.2,2643.9,6.162]
[1750099588153,7.65732874,2644.2,2643.9,9.94426698]
[1750099588354,12.24547419,2644.4,2643.9,9.94426698]
[1750099588718,0.55,2644.4,2644.0,3.78211387]
[1750099588920,0.55,2644.4,2644.0,3.77211387]
[1750099589235,3.78150961,2644.5,2644.0,3.77211387]
[1750099589625,3.78158735,2644.4,2643.9,9.94421021]
[1750099590326,3.78158735,2644.4,2644.0,3.7821458]
[1750099590526,11.43891609,2644.4,2644.0,3.7821458]
[1750099590727,7.65732874,2644.4,2644.0,3.7821458]
[1750099591358,7.65732874,2644.4,2644.0,9.9421458]
[1750099591562,12.21915909,2644.5,2644.1,3.78193244]
[1750099591863,10.0,2644.5,2644.1,4.56460463]
[1750099592633,10.0,2644.5,2644.2,3.78185297]
[1750099592852,10.0,2644.7,2644.3,3.78162055]
[1750099593247,3.80095082,2644.9,2644.4,9.94051438]
[1750099593454,10.02,2644.9,2644.5,3.78141435]
[1750099593761,0.02,2644.9,2644.5,3.78141435]
[1750099593974,13.80086561,2644.9,2644.4,9.9405135]
[1750099594183,7.65732874,2644.8,2644.4,9.9405135]
[1750099594459,7.65732874,2644.8,2644.5,3.78141691]
[1750099594823,7.65732874,2644.8,2644.4,6.159]
[1750099594824,7.65732874,2644.8,2644.4,9.94049718]
[1750099595122,7.65732874,2644.6,2644.1,0.7827]
[1750099595318,7.65732874,2644.4,2644.2,9.94186029]
[1750099595526,11.43862944,2644.6,2644.2,6.16]
[1750099598333,3.78144566,2644.5,2644.1,4.56465429]
[1750099598665,3.78151112,2644.5,2644.2,6.159]
[1750099599927,10.90604958,2644.6,2644.2,6.159]
[1750099600163,0.90621862,2644.6,2644.2,9.94078821]
[1750099600479,14.68742728,2644.7,2644.2,9.94078821]
[1750099601460,11.43862687,2644.6,2644.2,6.159]
[1750099601667,12.34484549,2644.6,2644.2,9.94081244]
[1750099602580,0.90621862,2644.6,2644.3,3.78170931]
[1750099602866,0.90621862,2644.7,2644.3,3.78170931]
[1750099603078,11.43840737,2644.8,2644.3,3.78170931]
[1750099603228,3.78115905,2644.7,2644.3,3.78170931]
[1750099603666,11.43839338,2644.8,2644.4,3.78157212]
[1750099603866,14.70715589,2644.9,2644.5,6.9265]
[1750099604046,4.70715589,2644.9,2644.5,6.9265]
[1750099604268,3.80093727,2644.9,2644.5,6.9265]
[1750099604454,3.80093727,2644.9,2644.5,10.70787507]
[1750099604657,3.80093727,2644.9,2644.5,6.9265]
[1750099604902,10.02,2644.9,2644.5,6.9265]
[1750099605040,10.02,2644.9,2644.6,3.78120729]
[1750099605533,10.02,2644.9,2644.7,0.7806]
[1750099605534,0.02,2644.9,2644.7,0.7806]
[1750099605757,0.02,2644.9,2644.7,4.56168759]
[1750099606075,0.02,2644.9,2644.7,10.71868759]
[1750099606271,0.02,2644.9,2644.7,6.9376]
[1750099606746,0.02,2644.9,2644.7,10.71874312]
[1750099608069,0.02,2644.9,2644.7,6.9376]
[1750099608272,3.78116696,2644.7,2644.1,5.36900521]
[1750099608431,7.65732874,2644.6,2644.2,3.78173194]
[1750099608783,7.65732874,2644.6,2644.2,9.94173194]
[1750099609248,11.43839718,2644.8,2644.4,0.7879]
[1750099609437,11.43839718,2644.8,2644.5,6.159]
[1750099612178,7.65732874,2644.8,2644.5,6.159]
[1750099612475,0.02,2644.9,2644.7,4.56898623]
[1750099612940,0.02,2644.9,2644.8,3.78100423]
[1750099617898,0.02,2644.9,2644.6,5.37121206]
[1750099618149,0.02,2644.9,2644.8,6.156]
[1750099619257,0.02,2644.9,2644.8,9.93700423]
[1750099619749,0.02,2644.9,2644.8,6.156]
[1750099620447,0.02,2644.9,2644.8,9.93700423]
[1750099621202,0.02,2644.9,2644.8,6.156]
[1750099621532,0.02,2644.9,2644.8,9.93700423]
[1750099624040,0.02,2644.9,2644.8,6.156]
[1750099624906,0.02,2644.9,2644.6,1.59]
[1750099625111,11.4383387,2644.8,2644.1,4.67]
[1750099625341,11.4383387,2644.8,2644.2,9.39960079]
[1750099625342,7.65732874,2644.8,2644.2,9.39960079]
[1750099625641,7.65732874,2644.8,2644.4,3.78145302]
[1750099625847,7.65732874,2644.8,2644.5,6.153]
[1750099626050,11.43833644,2644.8,2644.5,6.153]
[1750099626226,11.43833644,2644.8,2644.3,3.78158527]
[1750099626408,11.43833644,2644.8,2644.4,6.153]
[1750099626609,3.78115872,2644.7,2644.4,6.153]
[1750099627243,11.43841782,2644.8,2644.4,6.153]
[1750099627810,13.04147639,2644.8,2644.4,6.153]
[1750099628431,13.04147639,2644.8,2644.3,5.37158527]
[1750099628657,13.04147639,2644.8,2644.4,6.153]
[1750099628853,3.78115008,2644.7,2644.4,6.153]
[1750099630319,11.43862794,2644.6,2644.5,6.152]
[1750099630518,11.43862794,2644.6,2644.2,4.59319095]
[1750099630766,7.65732874,2644.3,2644.1,5.37194749]
[1750099630931,4.53557035,2644.5,2643.7,4.67]
[1750099630932,7.65732874,2644.2,2643.7,2.3686]
[1750099631131,11.43926556,2644.2,2643.8,6.152]
[1750099631446,11.43926556,2644.2,2643.9,6.154]
[1750099631447,11.43929292,2644.2,2643.9,6.154]
[1750099631762,0.7937,2644.1,2643.9,6.154]
[1750099633135,4.57571811,2644.1,2643.9,6.154]
[1750099633770,12.23304685,2644.1,2643.7,5.37251432]
[1750099633969,12.23304685,2644.1,2643.8,6.152]
[1750099634267,8.45102874,2644.1,2643.8,6.152]
[1750099635371,8.45102874,2644.1,2643.7,5.37251432]
[1750099635573,8.45102874,2644.1,2643.9,6.152]
[1750099635870,3.78214826,2644.0,2643.6,5.37268561]
[1750099636173,3.78229071,2644.0,2643.6,1.59]
[1750099636635,3.78229071,2644.0,2643.7,6.153]
[1750099637375,12.23310979,2644.1,2643.7,6.153]
[1750099637580,3.78170326,2644.4,2643.8,3.78230843]
[1750099637739,0.90459449,2644.7,2644.1,0.7592]
[1750099637934,0.90459449,2644.7,2644.2,9.93479185]
[1750099637935,3.78124537,2644.7,2644.2,9.93479185]
[1750099638277,14.6025978,2644.8,2644.3,3.78161729]
[1750099638447,13.78115517,2644.7,2644.2,6.153]
[1750099638654,13.78121903,2644.7,2644.3,6.155]
[1750099640054,3.78129043,2644.6,2644.3,6.155]
[1750099640740,13.78121173,2644.7,2644.3,6.155]
[1750099641578,3.7813034,2644.6,2644.3,6.155]
[1750099641780,4.60258403,2644.8,2644.3,6.155]
[1750099641968,4.60258403,2644.8,2644.3,9.93664925]
[1750099642638,3.78117376,2644.7,2644.3,6.155]
[1750099643137,3.78117376,2644.7,2644.1,6.13116131]
[1750099643138,11.43882087,2644.5,2644.1,0.7592]
[1750099643337,3.78160248,2644.4,2644.0,5.37008054]
[1750099643560,7.65732874,2644.5,2644.1,6.153]
[1750099643935,11.43882206,2644.5,2644.0,3.78208054]
[1750099644158,7.65732874,2644.5,2644.1,9.93494371]
[1750099645263,11.43883419,2644.5,2644.1,6.153]
[1750099645580,11.43876456,2644.5,2644.1,9.9349892]
[1750099645979,7.65732874,2644.5,2644.1,9.9349892]
[1750099646190,7.65732874,2644.5,2644.2,3.7818442]
[1750099646389,7.65732874,2644.5,2644.1,9.93492254]
[1750099646561,11.4387884,2644.5,2644.2,6.153]
[1750099647482,10.4387884,2644.5,2644.2,6.153]
[1750099647647,6.65732874,2644.5,2644.2,6.153]
[1750099648349,10.8215,2644.8,2644.3,3.78170909]
[1750099648548,14.60256956,2644.8,2644.4,3.78157201]
[1750099649183,14.60256956,2644.8,2644.3,4.58913418]
[1750099649946,11.43855695,2644.7,2644.3,0.8075]
[1750099650150,11.43855695,2644.7,2644.2,6.153]
[1750099650151,10.26344139,2644.7,2644.2,6.153]
[1750099650387,7.65732874,2644.5,2644.3,6.153]
[1750099650884,11.43876363,2644.5,2644.3,6.153]
[1750099651091,11.43876363,2644.5,2643.9,4.5327007]
[1750099651092,4.60857616,2644.4,2643.9,6.12070459]
[1750099651300,7.65732874,2644.3,2643.9,1.588]
[1750099651599,3.7818631,2644.2,2643.9,1.588]
[1750099651763,3.7818631,2644.2,2644.0,6.153]
[1750099651971,11.43916925,2644.3,2644.0,6.153]
[1750099652961,3.78187286,2644.2,2644.0,6.153]
[1750099653292,3.78190691,2644.2,2644.0,6.153]
[1750099653861,3.78200521,2644.1,2644.0,6.153]
[1750099654195,3.78198508,2644.2,2644.0,6.153]
[1750099654409,3.78198508,2644.2,2643.7,4.53337715]
[1750099654600,3.78198508,2644.2,2643.8,6.153]
[1750099654952,7.65732874,2644.3,2643.8,9.93542104]
[1750099654953,11.43911532,2644.3,2643.8,9.93542104]
[1750099655599,3.78186613,2644.2,2643.8,9.93542104]
[1750099656113,3.78202794,2644.1,2643.8,6.153]
[1750099656289,3.78202794,2644.1,2643.7,1.58241789]
[1750099656616,3.78218984,2644.0,2643.7,0.83161789]
[1750099656824,3.78218984,2644.0,2643.8,6.153]
[1750099657469,3.78218984,2644.0,2643.6,5.3706089]
[1750099657470,3.78207636,2644.1,2643.9,6.153]
[1750099658109,3.78214826,2644.0,2643.9,6.153]
[1750099658326,3.78208759,2644.1,2643.9,6.153]
[1750099660125,10.0,2644.2,2643.9,6.153]
[1750099660126,13.78193945,2644.2,2643.9,6.153]
[1750099660497,10.827,2644.4,2643.9,11.72840851]
[1750099660813,15.51484403,2644.4,2643.9,11.72840851]
[1750099661383,3.78173799,2644.3,2643.9,7.94625657]
[1750099661821,10.827,2644.4,2643.9,7.94625657]
[1750099662117,3.78194125,2644.2,2644.0,6.153]
[1750099662623,3.78200521,2644.1,2644.0,6.153]
[1750099662992,3.78193959,2644.2,2643.9,6.153]
[1750099663378,3.78193959,2644.2,2643.7,3.78254503]
[1750099663379,3.78201918,2644.1,2643.7,3.78254503]
[1750099663719,3.78201918,2644.1,2643.8,6.153]
[1750099664284,11.43965709,2643.9,2643.6,1.588]
[1750099664485,11.43965709,2643.9,2643.7,6.153]
[1750099665221,3.78243437,2643.8,2643.7,6.153]
[1750099665424,3.78235674,2643.9,2643.7,6.153]
[1750099665760,3.78235674,2643.9,2643.6,1.588]
[1750099665761,3.7825739,2643.8,2643.6,1.588]
[1750099666034,10.0,2643.9,2643.7,6.153]
[1750099666234,13.78241155,2643.9,2643.7,6.153]
[1750099666402,3.78243437,2643.8,2643.7,6.153]
[1750099667324,0.8252,2643.7,2643.2,9.21054555]
[1750099667535,3.78279011,2643.6,2643.3,1.07985456]
[1750099667838,3.78290627,2643.5,2643.2,0.7573]
[1750099668001,3.78290627,2643.5,2643.4,6.153]
[1750099669204,3.78279986,2643.6,2643.4,6.154]
[1750099670233,12.26519088,2643.7,2643.4,6.154]
[1750099670795,4.60786214,2643.7,2643.4,6.154]
[1750099671002,0.8252,2643.7,2643.4,6.154]
[1750099671234,3.78266387,2643.7,2643.2,3.78323397]
[1750099671440,3.78257744,2643.7,2643.3,6.153]
[1750099671642,3.7827583,2643.6,2643.3,6.153]
[1750099672155,3.78264865,2643.7,2643.3,6.153]
[1750099672805,3.78274354,2643.6,2643.3,6.153]
[1750099673246,3.78273784,2643.6,2643.0,4.61011514]
[1750099673446,3.78273784,2643.6,2643.2,3.78327716]
[1750099673871,3.78266081,2643.7,2643.2,3.78327716]
[1750099674075,3.78266081,2643.7,2643.3,3.78314149]
[1750099674260,3.78250087,2643.8,2643.3,3.78314149]
[1750099674464,3.78129017,2644.6,2643.4,0.8216]
[1750099674666,4.56489065,2644.4,2643.9,3.78227568]
[1750099674871,3.78169065,2644.4,2644.0,6.153]
[1750099677186,10.0,2644.4,2644.1,0.7752]
[1750099677353,3.78158946,2644.4,2644.1,0.7752]
[1750099677558,3.78158946,2644.4,2644.0,6.153]
[1750099678296,3.78158946,2644.4,2643.9,4.57031942]
[1750099678297,7.65732874,2644.4,2643.9,0.7881]
[1750099678504,11.43957879,2644.0,2643.6,2.3761]
[1750099678801,11.43977344,2643.8,2643.7,6.153]
[1750099679391,7.65732874,2643.8,2643.4,0.7881]
[1750099679599,7.65732874,2643.6,2643.5,6.153]
[1750099680365,7.65732874,2643.6,2643.2,1.588]
[1750099680366,11.44004927,2643.6,2643.2,1.588]
[1750099680569,11.44004927,2643.6,2643.3,6.153]
[1750099680865,7.65732874,2643.6,2643.3,6.153]
[1750099681060,3.78265387,2643.7,2643.3,9.93613712]
[1750099681277,3.78192846,2644.2,2643.5,7.65732874]
[1750099681488,10.0,2644.2,2643.8,3.78235743]
[1750099681701,11.71563896,2644.4,2643.9,6.153]
[1750099681879,3.78179319,2644.3,2643.9,6.153]
[1750099682868,3.7818916,2644.2,2643.9,6.153]
[1750099683368,3.78177509,2644.3,2643.9,6.153]
[1750099683611,3.78189204,2644.2,2643.9,6.153]
[1750099685102,3.78189204,2644.2,2643.7,4.60140886]
[1750099685307,3.78189204,2644.2,2644.0,6.161]
[1750099686206,3.78179017,2644.3,2644.0,6.161]
[1750099686413,3.78187348,2644.2,2644.0,6.161]
[1750099687779,3.78200521,2644.1,2644.0,6.161]
[1750099688699,3.78193071,2644.2,2644.0,6.161]
[1750099689018,5.49734987,2644.4,2644.0,6.161]
[1750099689215,4.59133254,2644.4,2644.0,6.161]
[1750099689416,3.78186612,2644.2,2644.0,6.161]
[1750099689716,3.78173178,2644.3,2644.0,6.161]
[1750099689877,3.78188108,2644.2,2644.0,6.161]
[1750099690717,3.78200521,2644.1,2643.7,3.24532149]
[1750099690889,3.78200521,2644.1,2643.8,6.157]
[1750099692023,3.78194526,2644.2,2643.8,6.157]
[1750099694434,3.78178186,2644.3,2643.8,7.85376131]
[1750099694593,3.78200739,2644.1,2643.8,7.85376131]
[1750099694787,13.78193726,2644.2,2643.8,7.85376131]
[1750099695005,3.78203886,2644.1,2643.8,6.157]
[1750099695210,3.78208173,2644.1,2643.9,6.155]
[1750099696029,3.78208173,2644.1,2643.7,0.8189]
[1750099696340,3.78208173,2644.1,2643.8,6.155]
[1750099696492,3.78216075,2644.0,2643.8,6.155]
[1750099696688,3.78216075,2644.0,2643.7,0.8189]
[1750099696888,3.78200521,2644.1,2643.8,6.153]
[1750099698346,4.58009944,2644.2,2643.8,6.153]
[1750099698700,5.48635494,2644.2,2643.8,6.153]
[1750099698902,3.78207905,2644.1,2643.8,6.153]
[1750099699451,3.78222135,2644.0,2643.8,6.153]
[1750099701037,3.78229131,2643.9,2643.8,6.153]
[1750099701212,3.78223381,2644.0,2643.8,6.153]
[1750099704005,3.78223381,2644.0,2643.9,6.153]
[1750099705127,10.9062555,2644.1,2643.9,6.153]
[1750099705324,0.9062555,2644.1,2643.9,6.9654]
[1750099705574,3.78214826,2644.0,2643.9,6.9654]
[1750099705728,13.78205994,2644.1,2643.9,6.153]
[1750099709767,13.78205994,2644.1,2643.7,0.8124]
[1750099709939,14.6891454,2644.1,2643.9,6.153]
[1750099710148,14.6891454,2644.1,2643.7,0.8124]
[1750099710348,14.6891454,2644.1,2643.9,6.153]
[1750099710931,18.28997385,2644.1,2643.5,6.1772755]
[1750099711134,12.34288569,2644.0,2643.8,6.153]
[1750099711762,8.56059913,2644.0,2643.1,4.67]
[1750099711970,7.65354328,2643.4,2643.1,2.3945]
[1750099712192,7.65354328,2643.4,2643.2,6.153]
[1750099712486,7.65354328,2643.4,2643.1,0.8065]
[1750099712696,3.78353284,2643.1,2642.9,1.588]
[1750099712854,7.65354328,2643.0,2642.9,7.741]
[1750099713057,11.43712254,2643.0,2642.9,7.741]
[1750099713667,11.43712254,2643.0,2642.6,0.8065]
[1750099713892,11.43712254,2643.0,2642.9,6.153]
[1750099714033,3.78348933,2643.1,2642.9,6.153]
[1750099714238,11.43691679,2643.2,2642.9,6.153]
[1750099716339,12.24045678,2643.4,2642.9,9.93660124]
[1750099716540,3.78320787,2643.3,2642.9,6.153]
[1750099718144,3.78330645,2643.2,2642.9,6.153]
[1750099719899,3.78344671,2643.1,2642.9,6.154]
[1750099720241,11.43691966,2643.2,2642.6,7.48310513]
[1750099720475,11.43691966,2643.2,2642.7,9.93800877]
[1750099722076,11.43691966,2643.2,2642.8,3.7838537]
[1750099722286,7.65354328,2643.2,2642.8,3.7838537]
[1750099722647,11.43684189,2643.2,2642.8,3.7838537]
[1750099722849,11.43684189,2643.2,2642.7,9.93793522]
[1750099723145,3.78347024,2643.1,2642.7,6.154]
[1750099723602,11.43689949,2643.2,2642.7,9.9379711]
[1750099724335,3.78335621,2643.2,2642.8,3.78384932]
[1750099724543,3.78200784,2644.1,2642.8,3.78384932]
[1750099724544,3.78258059,2643.7,2643.1,3.78343611]
[1750099724704,10.0,2643.6,2643.3,3.78313421]
[1750099725105,14.53959335,2643.8,2643.4,6.154]
[1750099725307,3.78226289,2644.0,2643.5,3.78286362]
[1750099725532,10.0,2643.8,2643.4,9.93694661]
[1750099725732,10.0,2643.8,2643.5,3.78286117]
[1750099726206,10.0,2643.8,2643.4,9.93692302]
[1750099727151,10.0,2643.8,2643.5,3.7828131]
[1750099727713,10.0,2643.9,2643.5,3.7828131]
[1750099727916,10.0,2643.9,2643.5,3.78286362]
[1750099728753,17.65354328,2643.9,2643.4,6.154]
[1750099728929,17.65354328,2643.9,2643.4,9.93697996]
[1750099729130,21.43592023,2643.9,2643.4,9.93697996]
[1750099730967,17.65354328,2643.9,2643.5,3.78284066]
[1750099731156,0.8122,2644.1,2643.6,4.56601736]
[1750099731157,22.24778396,2644.1,2643.6,4.56601736]
[1750099731333,14.5942071,2644.1,2643.7,6.154]
[1750099731527,7.65354328,2644.3,2643.9,3.78216501]
[1750099731727,12.22747865,2644.4,2644.0,6.154]
[1750099731929,10.0,2644.2,2644.0,6.154]
[1750099732128,10.0,2644.3,2644.0,6.154]
[1750099732452,13.78172072,2644.3,2644.0,6.154]
[1750099734453,10.0,2644.3,2644.0,6.154]
[1750099735026,10.0,2644.3,2644.0,9.93614514]
[1750099735380,11.43515302,2644.4,2644.0,6.9302]
[1750099737779,11.43540709,2644.2,2644.0,6.154]
[1750099737951,11.43540709,2644.2,2643.8,0.7762]
[1750099738150,7.65354328,2644.0,2643.9,6.153]
[1750099738676,7.65354328,2644.0,2643.6,6.14683803]
[1750099738848,7.65354328,2644.0,2643.9,6.153]
[1750099740154,3.78200701,2644.1,2643.9,6.153]
[1750099741579,3.78214826,2644.0,2643.9,6.152]
[1750099742341,12.22511342,2644.2,2643.9,6.152]
[1750099742342,13.78208717,2644.1,2643.9,6.152]
[1750099742581,13.78201069,2644.1,2643.9,6.152]
[1750099742783,10.0,2644.1,2643.9,6.152]
[1750099742983,13.78201965,2644.1,2643.9,6.152]
[1750099745851,2.3805232,2644.4,2643.9,9.93419169]
[1750099745852,8.43344328,2644.4,2643.9,9.93419169]
[1750099746066,5.91902248,2644.8,2644.0,0.82822143]
[1750099746067,0.90436783,2644.6,2644.0,0.82822143]
[1750099746377,0.8196,2644.9,2644.0,0.82822143]
[1750099746378,0.02,2644.9,2644.5,3.7813783]
[1750099746564,0.02,2644.9,2644.6,6.152]
[1750099746771,0.02,2644.9,2644.6,9.93320989]
[1750099747653,0.02,2644.9,2644.3,0.7904]
[1750099747654,3.78122371,2644.7,2644.3,0.7904]
[1750099747866,7.65354328,2644.6,2644.3,6.9424]
[1750099748778,11.43484015,2644.6,2644.3,6.9424]
[1750099749149,11.43491021,2644.6,2644.3,6.152]
[1750099749752,3.78117268,2644.7,2644.3,6.152]
[1750099750060,7.65354328,2644.6,2644.3,9.93370566]
[1750099750269,12.2342198,2644.8,2644.4,3.78155323]
[1750099750445,3.78115581,2644.7,2644.3,6.152]
[1750099750950,11.43463028,2644.8,2644.3,9.93370652]
[1750099751998,3.78115013,2644.7,2644.3,6.152]
[1750099752752,3.78115013,2644.7,2644.3,9.93371681]
[1750099753279,3.78115013,2644.7,2644.3,6.152]
[1750099753656,11.4348471,2644.6,2644.3,6.152]
[1750099754166,7.65354328,2644.6,2644.3,6.152]
[1750099754992,11.43486994,2644.6,2644.3,6.152]
[1750099755595,7.65354328,2644.6,2644.3,9.93369708]
[1750099755967,7.65354328,2644.4,2643.9,3.78222323]
[1750099756164,3.78180237,2644.3,2644.0,6.151]
[1750099756570,11.43517678,2644.4,2644.0,6.151]
[1750099757090,11.43517678,2644.4,2643.9,4.56076087]
[1750099757091,3.78177939,2644.3,2644.1,6.151]
[1750099758694,3.78186218,2644.2,2644.1,6.151]
[1750099758998,3.7817841,2644.3,2644.1,6.151]
[1750099759698,3.78186218,2644.2,2643.9,0.7785]
[1750099759883,3.78186218,2644.2,2644.1,6.15]
[1750099760087,5.78186218,2644.2,2644.1,6.15]
[1750099760405,2.0,2644.2,2644.1,10.62485521]
[1750099760587,2.0,2644.2,2644.1,11.42165521]
[1750099766416,2.0,2644.2,2643.9,0.7548]
[1750099766577,2.0,2644.2,2644.0,6.15]
[1750099767407,2.0,2644.2,2644.0,9.93205082]